fUSD/lending_fUSD_20250125
["ID","MTS","AMOUNT","RATE_DAILY","PERIOD"]
[350380453,1737817860527,-500.0,0.00020356,2]
[350380454,1737817860535,-298.2,0.00020356,2]
[350380455,1737817860545,-298.2,0.00020356,2]
[350380456,1737817860554,-982.7,0.00020356,2]
[350380457,1737817860563,-298.2,0.00020356,2]
[350380458,1737817860573,-437.34,0.00020356,2]
[350380459,1737817860583,-982.7,0.00020356,2]
[350380460,1737817860592,-298.2,0.00020356,2]
[350380461,1737817860602,-298.2,0.00020356,2]
[350380462,1737817860612,-982.7,0.00020356,2]
[350380463,1737817860621,-977.1,0.00020356,2]
[350380464,1737817860630,-298.2,0.00020356,2]
[350380465,1737817860640,-298.2,0.00020356,2]
[350380466,1737817860649,-300.0,0.00020356,2]
[350380467,1737817860660,-298.2,0.00020356,2]
[350380468,1737817860669,-298.2,0.00020356,2]
[350380469,1737817860679,-298.2,0.00020356,2]
[350380470,1737817860688,-298.2,0.00020356,2]
[350380471,1737817860699,-483.69,0.00020356,2]
[350380472,1737817860708,-150.0,0.00020364,2]
[350380473,1737817860717,-150.0,0.00020366,2]
[350380474,1737817860727,-152.0,0.00020382,4]
[350380475,1737817860736,-1574.0,0.000204,2]
[350380476,1737817860746,-1337.72,0.0002041,2]
[350380477,1737817860757,-657.49,0.0002041,2]
[350380478,1737817860766,-997.05,0.0002041,2]
[350380479,1737817860776,-600.39,0.0002041,2]
[350380480,1737817860786,-1729.88,0.0002041,2]
[350380481,1737817860795,-624.67,0.0002041,2]
[350380482,1737817860805,-962.15,0.0002041,2]
[350380483,1737817860814,-1405.9,0.0002041,2]
[350380484,1737817860824,-1000.0,0.00020431,2]
[350380485,1737817860833,-150.0,0.0002044,2]
[350380486,1737817860843,-1297.14587394,0.00020452,2]
[350380487,1737817860852,-1553.51,0.00020454,2]
[350380488,1737817860862,-150.0,0.00020482,2]
[350380489,1737817860871,-150.0,0.00020494,2]
[350380490,1737817860880,-150.0,0.00020495,2]
[350380491,1737817860890,-150.0,0.00020499,2]
[350380492,1737817860899,-2110.0,0.000205,2]
[350380493,1737817860908,-1500.0,0.000205,2]
[350380494,1737817860918,-3000.0,0.000205,2]
[350380495,1737817860929,-150.0,0.00020507,2]
[350380496,1737817860939,-1212.35,0.00020546,2]
[350380497,1737817860949,-571.5319121,0.00020546,2]
[350380498,1737817860959,-177.55,0.00020548,2]
[350380499,1737817860969,-443.89,0.00020592,2]
[350380500,1737817860979,-773.64,0.00020592,2]
[350380501,1737817860990,-438.79,0.00020592,2]
[350380502,1737817861000,-773.64,0.00020592,2]
[350380503,1737817861010,-438.79,0.00020592,2]
[350380504,1737817861024,-399.63,0.00020592,2]
[350380505,1737817861033,-83.56962722,0.00020592,2]
[350380506,1737817861047,-355.07037278,0.00020592,2]
[350380507,1737817861056,-596.4,0.00020593,2]
[350380508,1737817861066,-150.0,0.00020597,2]
[350380509,1737817861076,-1000.0,0.000206,2]
[350380510,1737817861085,-150.0,0.00020612,2]
[350380511,1737817861095,-150.0,0.00020616,2]
[350380512,1737817861105,-150.0,0.00020655,2]
[350380513,1737817861115,-150.0,0.00020658,2]
[350380514,1737817861124,-299.05266896,0.00020659,2]
[350380515,1737817861136,-387.12864951,0.00020659,2]
[350380516,1737817861145,-150.0,0.00020664,2]
[350380517,1737817861154,-656.9027271,0.00020685,2]
[350380518,1737817861164,-309.85388124,0.00020686,2]
[350380519,1737817861175,-690.14611876,0.00020686,2]
[350380520,1737817861185,-176.7597565,0.00020689,2]
[350380521,1737817861195,-383.44412474,0.00020693,2]
[350380522,1737817861206,-377.21328428,0.00020693,2]
[350380523,1737817861219,-536.48846492,0.00020693,2]
[350380524,1737817861229,-150.0,0.00020695,2]
[350380525,1737817861239,-150.0,0.0002072,2]
[350380526,1737817861248,-11008.57607701,0.0002072,2]
[350380527,1737817861258,-163.82,0.00020758,2]
[350380528,1737817861268,-150.0,0.0002076,2]
[350380529,1737817861277,-656.9027271,0.00020767,2]
[350380530,1737817861287,-150.0,0.00020775,2]
[350380531,1737817861298,-150.0,0.00020781,2]
[350380532,1737817861308,-150.0,0.00020782,2]
[350380533,1737817861318,-2800.0,0.000208,7]
[350380534,1737817861328,-150.0,0.00020821,2]
[350380535,1737817861338,-150.0,0.00020831,2]
[350380536,1737817861347,-150.0,0.00020834,2]
[350380537,1737817861357,-150.0,0.00020845,2]
[350380538,1737817861367,-410.82,0.00020849,2]
[350380539,1737817861376,-13280.33395189,0.00020852,2]
[350380540,1737817861388,-1340.75451021,0.00020852,2]
[350380541,1737817861398,-1000.0,0.0002086,2]
[350380542,1737817861409,-150.0,0.00020865,2]
[350380543,1737817861419,-656.9027271,0.00020877,2]
[350380544,1737817861430,-1006.51,0.00020879,2]
[350380545,1737817861443,-3500.0,0.000209,7]
[350380546,1737817861453,-1000.0,0.00020908,2]
[350380547,1737817861464,-300.61860405,0.00020914,2]
[350380548,1737817861515,-150.0,0.00020926,2]
[350380549,1737817861526,-1297.14587394,0.00020934,2]
[350380550,1737817861536,-228.06318773,0.0002095,2]
[350380551,1737817861547,-150.0,0.00020956,2]
[350380552,1737817861556,-150.0,0.00020958,2]
[350380553,1737817861566,-150.0,0.00020969,2]
[350380554,1737817861575,-1163.4164783,0.00020971,2]
[350380555,1737817861584,-656.9027271,0.00020986,2]
[350380556,1737817861594,-150.0,0.00020996,2]
[350380557,1737817861608,-1949.68589157,0.00021,2]
[350380558,1737817861669,-364.65472953,0.00017259,2]
[350380559,1737817861678,-160.31410843,0.00021,2]
[350380560,1737817861687,-700.0,0.00021,2]
[350380561,1737817861697,-250.0,0.00021,2]
[350380562,1737817861707,-1000.0,0.00021,2]
[350380563,1737817861717,-11040.2606214,0.00021,3]
[350380564,1737817861727,-150.0,0.0002101,2]
[350380565,1737817861736,-150.0,0.00021015,2]
[350380566,1737817861745,-150.0,0.00021018,2]
[350380567,1737817861754,-150.0,0.00021018,2]
[350380568,1737817861764,-150.0,0.00021026,2]
[350380569,1737817861773,-152.0,0.00021051,5]
[350380570,1737817861783,-150.0,0.00021063,2]
[350380571,1737817861793,-150.0,0.00021064,2]
[350380572,1737817861802,-656.9027271,0.00021068,2]
[350380573,1737817861812,-686.18131847,0.00021072,2]
[350380574,1737817861821,-150.0,0.00021094,2]
[350380575,1737817861831,-246.77,0.00021094,2]
[350380576,1737817861840,-1000.0,0.0002112,2]
[350380577,1737817861850,-2491.0,0.00021133,2]
[350380578,1737817861860,-1000.0,0.00021139,2]
[350380579,1737817861869,-150.0,0.00021141,2]
[350380580,1737817861878,-150.0,0.00021143,2]
[350380581,1737817861888,-150.0,0.00021175,2]
[350380582,1737817861898,-1297.14587394,0.00021176,2]
[350380583,1737817861907,-656.9027271,0.00021178,2]
[350380584,1737817861917,-150.0,0.0002119,2]
[350380585,1737817861927,-150.0,0.00021192,2]
[350380586,1737817861936,-150.0,0.00021198,2]
[350380587,1737817861945,-1000.0,0.000212,2]
[350380588,1737817861955,-1000.0,0.00021212,2]
[350380589,1737817861964,-500.0,0.00021228,2]
[350380590,1737817861974,-500.0,0.00021229,2]
[350380591,1737817861984,-500.0,0.00021229,2]
[350380592,1737817861993,-150.0,0.00021231,2]
[350380593,1737817862003,-1000.0,0.00021234,2]
[350380594,1737817862013,-1000.0,0.00021238,2]
[350380595,1737817862023,-150.0,0.00021245,2]
[350380596,1737817862034,-11008.57607701,0.0002125,2]
[350380597,1737817862044,-1000.0,0.00021251,2]
[350380598,1737817862055,-150.0,0.00021261,2]
[350380599,1737817862064,-150.0,0.00021262,2]
[350380600,1737817862073,-150.0,0.00021271,2]
[350380601,1737817862083,-1000.0,0.0002128,2]
[350380602,1737817862092,-165.38,0.00021287,2]
[350380603,1737817862102,-656.9027271,0.00021288,2]
[350380604,1737817862112,-500.0,0.00021288,2]
[350380605,1737817862122,-150.0,0.00021331,2]
[350380606,1737817862131,-1000.0,0.00021335,2]
[350380607,1737817862140,-2126.0,0.0002134,2]
[350380608,1737817862149,-150.0,0.00021358,2]
[350380609,1737817862158,-150.0,0.00021367,2]
[350380610,1737817862168,-656.9027271,0.0002137,2]
[350380611,1737817862177,-150.0,0.00021384,2]
[350380612,1737817862186,-150.0,0.00021392,2]
[350380613,1737817862195,-533.923867,0.00021395,2]
[350380614,1737817862204,-3809.2573476,0.00021395,2]
[350380615,1737817862213,-2053.129837,0.00021395,2]
[350380616,1737817862223,-488.9472351,0.00021395,2]
[350380617,1737817862231,-6465.0402611,0.00021395,2]
[350380618,1737817862242,-3379.0365548,0.00021395,2]
[350380619,1737817862251,-1097.01,0.00021399,2]
[350380620,1737817862261,-1446.5,0.00021399,2]
[350380621,1737817862271,-1446.5,0.00021399,2]
[350380622,1737817862281,-1446.5,0.00021399,2]
[350380623,1737817862290,-1446.5,0.00021399,2]
[350380624,1737817862300,-1446.5,0.00021399,2]
[350380625,1737817862310,-1446.5,0.00021399,2]
[350380626,1737817862321,-700.0,0.000214,7]
[350380627,1737817862330,-238101.04678652,0.000214,2]
[350380628,1737817862342,-1054.9,0.000214,2]
[350380629,1737817862353,-1160.7501005,0.000214,2]
[350380630,1737817862365,-550.13199261,0.000214,2]
[350380631,1737817862376,-3506.59166934,0.000214,2]
[350380632,1737817862388,-519.33038065,0.000214,2]
[350380633,1737817862399,-317.33677737,0.000214,2]
[350380634,1737817862415,-1050.0,0.000214,2]
[350380635,1737817862427,-36394.4555422,0.000214,2]
[350380636,1737817862442,-5511.61374963,0.000214,2]
[350380637,1737817862459,-500.0,0.00016573,2]
[350380638,1737817862468,-48.72783516,0.000214,2]
[350380639,1737817862479,-23563.60372128,0.000214,2]
[350380640,1737817862492,-16617.68058082,0.000214,2]
[350380641,1737817862503,-565.78899976,0.000214,2]
[350380642,1737817862516,-14938.94242342,0.000214,2]
[350380643,1737817862529,-970.088,0.000214,2]
[350380644,1737817862541,-828.552,0.000214,2]
[350380645,1737817862552,-914.0990865,0.000214,2]
[350380646,1737817862672,-500.0,0.00017259,2]
[350380647,1737817862682,-500.0,0.00017259,2]
[350380648,1737817862691,-529.03324076,0.00017395,2]
[350380649,1737817862700,-21594.64152977,0.000214,2]
[350380650,1737817862712,-83787.4941238,0.000214,2]
[350380651,1737817862723,-2116.18886571,0.000214,2]
[350380652,1737817862738,-1104.62527285,0.000214,2]
[350380653,1737817862755,-103624.9881128,0.000214,2]
[350380654,1737817862766,-715.5593661,0.000214,2]
[350380655,1737817862786,-831.39915485,0.000214,2]
[350380656,1737818121514,150.85,0.00016658,30]
[350380658,1737818318372,150.0,9.005e-05,2]
[350380661,1737818704819,2508.72711878,0.00022004,120]
[350380662,1737818719991,24887.65923822,0.00022,120]
[350380715,1737819032379,-150.0,9.999e-05,2]
[350380716,1737819032388,-3239.80224952,0.0001,2]
[350380717,1737819032519,-43282.7826093,0.0001,2]
[350380718,1737819032531,-3059.95859964,0.0001,2]
[350380719,1737819032542,-7082.59999996,0.0001,2]
[350380720,1737819032554,-128541.52772906,0.0001,2]
[350380721,1737819032564,-1199.87467513,0.0001,2]
[350380722,1737819032573,-150.32,0.00010137,2]
[350380723,1737819032582,-168.0,0.00010999,2]
[350380724,1737819032591,-160.50209789,0.00011899,2]
[350380725,1737819032601,-75029.97554432,0.00012,2]
[350380726,1737819032612,-187382.4029002,0.00012,2]
[350380727,1737819032623,-2176.09119283,0.00012,2]
[350380728,1737819032635,-127726.25998072,0.00012,2]
[350380729,1737819032646,-326.565,0.00012,2]
[350380730,1737819032658,-425.0816,0.00012,2]
[350380731,1737819032760,-1672.000009,0.00012,2]
[350380732,1737819032771,-1579.149995,0.00012,2]
[350380733,1737819032782,-14259.06266506,0.00012,2]
[350380734,1737819032792,-169.71009217,0.00012029,2]
[350380735,1737819032803,-160.50209789,0.00012129,2]
[350380736,1737819032813,-17010.37156766,0.00012129,2]
[350380737,1737819032823,-572.31440287,0.00012229,2]
[350380738,1737819032832,-156.46,0.00012329,2]
[350380739,1737819032842,-17010.37156758,0.00013159,2]
[350380740,1737819032852,-1301.51,0.00013931,2]
[350380741,1737819032861,-16447.70393434,0.00014189,2]
[350381278,1737819038417,-562.66763324,0.00014189,2]
[350381280,1737819038428,-487.23236676,0.0001439,2]
[350381282,1737819038440,-4245.02959505,0.0001439,2]
[350381284,1737819038452,-3360.02537361,0.0001439,2]
[350381286,1737819038461,-308.88287429,0.00014488,2]
[350381501,1737819040579,-23591.11712571,0.00014488,2]
[350381503,1737819040588,-250.0,0.00014542,2]
[350381505,1737819040598,-215.35980532,0.000149,2]
[350381507,1737819040607,-1100.30085532,0.000149,2]
[350381509,1737819040617,-5811.90116612,0.00015,2]
[350381511,1737819040627,-181.12,0.00015007,2]
[350381513,1737819040636,-1500.0,0.00015039,2]
[350381515,1737819040646,-368.99069087,0.000152,2]
[350381517,1737819040655,-368.99069087,0.000152,2]
[350381519,1737819040664,-368.99069087,0.000152,2]
[350381521,1737819040674,-368.99069087,0.000152,2]
[350381523,1737819040684,-368.99069087,0.000152,2]
[350381525,1737819040694,-368.99069087,0.000152,2]
[350381527,1737819040704,-368.99069087,0.000152,2]
[350381529,1737819040714,-368.99069087,0.000152,2]
[350381531,1737819040723,-17010.37156758,0.00015219,2]
[350381533,1737819040732,-4998.59,0.00015319,2]
[350381535,1737819040741,-368.99069087,0.00015383,2]
[350381537,1737819040751,-188.77,0.00015438,2]
[350381539,1737819040760,-250.0,0.00015467,2]
[350381541,1737819040769,-200.0,0.00015593,2]
[350381543,1737819040779,-324.66,0.00015686,2]
[350381545,1737819040788,-368.99069087,0.00015693,2]
[350381547,1737819040798,-222.79,0.00015772,2]
[350381549,1737819040810,-3286.5276418,0.00016,2]
[350381551,1737819040819,-368.99069087,0.00016003,2]
[350381553,1737819040829,-27401.9,0.00016083,2]
[350381555,1737819040838,-1000.0,0.00016083,2]
[350381557,1737819040847,-171.2,0.00016102,2]
[350381559,1737819040858,-1301.51,0.00016195,2]
[350381561,1737819040867,-1322.68,0.00016214,2]
[350381563,1737819040877,-17010.37156758,0.00016249,2]
[350381565,1737819040887,-368.99069087,0.00016314,2]
[350381567,1737819040897,-863.6291,0.00016338,2]
[350381569,1737819040906,-222.4494,0.00016338,2]
[350381571,1737819040915,-250.0,0.00016411,2]
[350381573,1737819040925,-500.0,0.00016438,2]
[350381574,1737819040935,-500.0,0.00016438,2]
[350381577,1737819040946,-500.0,0.00016438,2]
[350381579,1737819040956,-500.0,0.00016438,2]
[350381580,1737819040966,-500.0,0.00016438,2]
[350381582,1737819040975,-500.0,0.00016438,2]
[350381585,1737819040984,-500.0,0.00016438,2]
[350381587,1737819040994,-500.0,0.00016438,2]
[350381589,1737819041003,-500.0,0.00016438,2]
[350381590,1737819041012,-500.0,0.00016438,2]
[350381593,1737819041022,-500.0,0.00016438,2]
[350381595,1737819041031,-500.0,0.00016438,2]
[350381596,1737819041041,-500.0,0.00016438,2]
[350381599,1737819041050,-500.0,0.00016438,2]
[350381601,1737819041060,-500.0,0.00016438,2]
[350381603,1737819041069,-500.0,0.00016438,2]
[350381605,1737819041078,-798.15,0.00016438,2]
[350381607,1737819041091,-500.0,0.00016438,2]
[350381609,1737819041100,-500.0,0.00016438,2]
[350381611,1737819041109,-500.0,0.00016438,2]
[350381613,1737819041119,-500.0,0.00016438,2]
[350381615,1737819041131,-500.0,0.00016438,2]
[350381617,1737819041140,-500.0,0.00016438,2]
[350381619,1737819041149,-500.0,0.00016438,2]
[350381621,1737819041159,-500.0,0.00016438,2]
[350381623,1737819041168,-500.0,0.00016438,2]
[350381625,1737819041178,-500.0,0.00016438,2]
[350381627,1737819041187,-500.0,0.00016438,2]
[350381629,1737819041196,-500.0,0.00016438,2]
[350381630,1737819041205,-500.0,0.00016438,2]
[350381632,1737819041215,-561.84,0.00016438,2]
[350381633,1737819041224,-500.0,0.00016438,2]
[350381635,1737819041233,-500.0,0.00016438,2]
[350381637,1737819041242,-500.0,0.00016438,2]
[350381639,1737819041251,-500.0,0.00016438,2]
[350381641,1737819041262,-500.0,0.00016438,2]
[350381642,1737819041272,-500.0,0.00016438,2]
[350381644,1737819041281,-500.55822954,0.00016438,2]
[350381646,1737819041291,-500.0,0.00016438,2]
[350381647,1737819041300,-500.0,0.00016438,2]
[350381649,1737819041309,-500.0,0.00016438,2]
[350381651,1737819041318,-500.0,0.00016438,2]
[350381652,1737819041327,-500.0,0.00016438,2]
[350381654,1737819041337,-500.0,0.00016438,2]
[350381656,1737819041346,-500.0,0.00016438,2]
[350381657,1737819041355,-500.0,0.00016438,2]
[350381659,1737819041365,-500.0,0.00016438,2]
[350381661,1737819041374,-500.0,0.00016438,2]
[350381663,1737819041383,-500.0,0.00016438,2]
[350381665,1737819041392,-500.0,0.00016438,2]
[350381666,1737819041401,-628.80243118,0.00016438,2]
[350381668,1737819041411,-500.0,0.00016438,2]
[350381670,1737819041420,-500.0,0.00016438,2]
[350381672,1737819041431,-500.0,0.00016438,2]
[350381673,1737819041440,-500.0,0.00016438,2]
[350381675,1737819041450,-500.0,0.00016438,2]
[350381677,1737819041459,-500.0,0.00016438,2]
[350381679,1737819041469,-500.0,0.00016438,2]
[350381681,1737819041478,-500.0,0.00016438,2]
[350381682,1737819041487,-500.0,0.00016438,2]
[350381684,1737819041497,-500.0,0.00016438,2]
[350381686,1737819041506,-500.0,0.00016438,2]
[350381688,1737819041515,-191.12063825,0.00016438,2]
[350381689,1737819041525,-2500.0,0.00016473,2]
[350381691,1737819041534,-200.0,0.00016476,2]
[350381693,1737819041549,-229.21,0.00016538,2]
[350381695,1737819041559,-975.25018224,0.00016572,2]
[350381696,1737819041568,-500.0,0.00016572,2]
[350381698,1737819041578,-500.0,0.00016572,2]
[350381700,1737819041587,-500.0,0.00016572,2]
[350381701,1737819041597,-500.0,0.00016572,2]
[350381703,1737819041606,-500.0,0.00016572,2]
[350381705,1737819041615,-500.0,0.00016572,2]
[350381707,1737819041625,-500.0,0.00016572,2]
[350381709,1737819041635,-500.0,0.00016572,2]
[350381711,1737819041645,-500.0,0.00016572,2]
[350381712,1737819041655,-500.0,0.00016572,2]
[350381714,1737819041664,-544.61373762,0.00016572,2]
[350381716,1737819041673,-500.0,0.00016572,2]
[350381718,1737819041685,-501.73498177,0.00016572,2]
[350381719,1737819041694,-500.0,0.00016572,2]
[350381721,1737819041704,-293.24562189,0.00016572,2]
[350381723,1737819041714,-508.17645601,0.00016572,2]
[350381725,1737819041723,-500.0,0.00016572,2]
[350381727,1737819041733,-500.0,0.00016572,2]
[350381728,1737819041742,-618.87111228,0.00016572,2]
[350381730,1737819041752,-500.0,0.00016572,2]
[350381732,1737819041761,-456.22464297,0.00016572,2]
[350381734,1737819041771,-500.0,0.00016572,2]
[350381736,1737819041780,-507.61127453,0.00016572,2]
[350381738,1737819041789,-500.0,0.00016572,2]
[350381739,1737819041799,-500.0,0.00016572,2]
[350381741,1737819041812,-500.0,0.00016572,2]
[350381743,1737819041822,-500.0,0.00016572,2]
[350381745,1737819041832,-500.0,0.00016572,2]
[350381747,1737819041843,-526.08178114,0.00016572,2]
[350381749,1737819041853,-500.0,0.00016572,2]
[350381750,1737819041862,-502.88653398,0.00016572,2]
[350381752,1737819041872,-500.0,0.00016572,2]
[350381754,1737819041883,-500.0,0.00016572,2]
[350381756,1737819041893,-447.06582982,0.00016572,2]
[350381758,1737819041902,-500.0,0.00016572,2]
[350381760,1737819041911,-500.0,0.00016572,2]
[350381761,1737819041921,-500.0,0.00016572,2]
[350381763,1737819041933,-500.0,0.00016572,2]
[350381765,1737819041942,-500.0,0.00016572,2]
[350381767,1737819041951,-500.0,0.00016572,2]
[350381769,1737819041962,-500.0,0.00016572,2]
[350381771,1737819041972,-500.0,0.00016572,2]
[350381773,1737819041981,-500.0,0.00016572,2]
[350381774,1737819041991,-434.877435,0.00016572,2]
[350381776,1737819042000,-500.0,0.00016572,2]
[350381778,1737819042009,-500.0,0.00016572,2]
[350381780,1737819042019,-500.0,0.00016572,2]
[350381782,1737819042029,-500.0,0.00016572,2]
[350381784,1737819042038,-500.0,0.00016572,2]
[350381786,1737819042047,-500.0,0.00016572,2]
[350381787,1737819042057,-500.0,0.00016572,2]
[350381789,1737819042066,-500.0,0.00016572,2]
[350381791,1737819042075,-500.0,0.00016572,2]
[350381808,1737819042253,-500.0,0.00016572,2]
[350381810,1737819042262,-411.753408,0.00016572,2]
[350381812,1737819042271,-500.0,0.00016572,2]
[350381814,1737819042282,-500.0,0.00016572,2]
[350381815,1737819042292,-596.49,0.00016572,2]
[350381817,1737819042301,-500.0,0.00016572,2]
[350381819,1737819042311,-500.0,0.00016572,2]
[350381821,1737819042320,-500.0,0.00016572,2]
[350381823,1737819042328,-500.0,0.00016572,2]
[350381825,1737819042338,-500.0,0.00016572,2]
[350381826,1737819042347,-500.0,0.00016572,2]
[350381828,1737819042356,-500.0,0.00016572,2]
[350381830,1737819042365,-500.0,0.00016572,2]
[350381832,1737819042374,-500.0,0.00016572,2]
[350381834,1737819042384,-500.0,0.00016572,2]
[350381836,1737819042393,-500.0,0.00016572,2]
[350381837,1737819042402,-500.0,0.00016572,2]
[350381839,1737819042411,-500.0,0.00016572,2]
[350381841,1737819042421,-500.0,0.00016572,2]
[350381843,1737819042431,-500.0,0.00016572,2]
[350381845,1737819042439,-583.02,0.00016572,2]
[350381847,1737819042449,-20876.01,0.00016572,2]
[350381848,1737819042458,-500.0,0.00016572,2]
[350381850,1737819042468,-500.0,0.00016572,2]
[350381852,1737819042477,-500.0,0.00016572,2]
[350381854,1737819042487,-500.0,0.00016572,2]
[350381856,1737819042496,-500.0,0.00016572,2]
[350381858,1737819042505,-500.0,0.00016572,2]
[350381860,1737819042515,-500.0,0.00016572,2]
[350381862,1737819042524,-500.0,0.00016572,2]
[350381863,1737819042533,-500.0,0.00016572,2]
[350381865,1737819042542,-500.0,0.00016572,2]
[350381867,1737819042551,-500.0,0.00016572,2]
[350381869,1737819042561,-500.0,0.00016572,2]
[350381871,1737819042570,-500.0,0.00016572,2]
[350381873,1737819042580,-500.0,0.00016572,2]
[350381874,1737819042590,-500.0,0.00016572,2]
[350381876,1737819042599,-500.0,0.00016572,2]
[350381878,1737819042609,-1128.61,0.00016572,2]
[350381880,1737819042619,-500.0,0.00016572,2]
[350381882,1737819042628,-500.0,0.00016572,2]
[350381884,1737819042638,-500.0,0.00016572,2]
[350381885,1737819042647,-500.0,0.00016572,2]
[350381887,1737819042657,-500.0,0.00016572,2]
[350381888,1737819042667,-500.0,0.00016572,2]
[350381889,1737819042676,-500.0,0.00016572,2]
[350381890,1737819042686,-1000.0,0.00016572,2]
[350381891,1737819042695,-500.0,0.00016572,2]
[350381892,1737819042705,-500.0,0.00016572,2]
[350381893,1737819042714,-500.0,0.00016572,2]
[350381894,1737819042724,-500.0,0.00016572,2]
[350381895,1737819042733,-500.0,0.00016572,2]
[350381896,1737819042743,-500.0,0.00016572,2]
[350381897,1737819042752,-500.0,0.00016572,2]
[350381898,1737819042761,-500.0,0.00016572,2]
[350381899,1737819042770,-500.0,0.00016572,2]
[350381900,1737819042779,-500.0,0.00016572,2]
[350381901,1737819042789,-367.85916417,0.00016572,2]
[350381902,1737819042799,-505.14550335,0.00016572,2]
[350381903,1737819042811,-500.0,0.00016572,2]
[350381905,1737819042822,-500.0,0.00016572,2]
[350381906,1737819042831,-500.0,0.00016572,2]
[350381908,1737819042841,-500.0,0.00016572,2]
[350381910,1737819042851,-504.32622381,0.00016572,2]
[350381912,1737819042860,-500.0,0.00016572,2]
[350381914,1737819042870,-500.0,0.00016572,2]
[350381916,1737819042879,-500.0,0.00016572,2]
[350381918,1737819042889,-505.63220965,0.00016572,2]
[350381920,1737819042899,-500.0,0.00016572,2]
[350381922,1737819042910,-500.0,0.00016572,2]
[350381925,1737819042920,-500.0,0.00016572,2]
[350381927,1737819042930,-500.0,0.00016572,2]
[350381928,1737819042939,-504.08707239,0.00016572,2]
[350381931,1737819042948,-500.0,0.00016572,2]
[350381932,1737819042959,-500.0,0.00016572,2]
[350381935,1737819042968,-84472.63988592,0.00016573,2]
[350381937,1737819042978,-500.0,0.00016573,2]
[350381939,1737819042988,-500.0,0.00016573,2]
[350381941,1737819042997,-500.0,0.00016573,2]
[350381943,1737819043007,-500.0,0.00016573,2]
[350381945,1737819043017,-500.0,0.00016573,2]
[350381947,1737819043026,-500.0,0.00016573,2]
[350381949,1737819043035,-500.0,0.00016573,2]
[350381951,1737819043044,-500.0,0.00016573,2]
[350381952,1737819043054,-500.0,0.00016573,2]
[350381954,1737819043063,-500.0,0.00016573,2]
[350381957,1737819043073,-500.0,0.00016573,2]
[350381959,1737819043083,-500.0,0.00016573,2]
[350381961,1737819043092,-500.0,0.00016573,2]
[350381963,1737819043102,-500.0,0.00016573,2]
[350381965,1737819043112,-500.0,0.00016573,2]
[350381967,1737819043121,-513.62676506,0.00016573,2]
[350381970,1737819043130,-500.0,0.00016573,2]
[350381973,1737819043140,-500.0,0.00016573,2]
[350381975,1737819043149,-500.0,0.00016573,2]
[350381977,1737819043158,-500.0,0.00016573,2]
[350381979,1737819043169,-500.0,0.00016573,2]
[350381981,1737819043180,-500.0,0.00016573,2]
[350381983,1737819043190,-500.0,0.00016573,2]
[350381985,1737819043200,-500.0,0.00016573,2]
[350381987,1737819043210,-500.0,0.00016573,2]
[350381989,1737819043219,-500.0,0.00016573,2]
[350381991,1737819043228,-500.0,0.00016573,2]
[350381993,1737819043238,-500.0,0.00016573,2]
[350381996,1737819043247,-500.0,0.00016573,2]